bitfinex/quotes_SOLUSD_20251031
["timestamp","ask_amount","ask_price","bid_price","bid_amount"]
[1761934929518,0.71,185.89,185.84,4.09459026]
[1761934930083,9.48418171,185.89,185.84,3.39459026]
[1761934930282,3.39459026,185.88,185.83,4.09459026]
[1761934930726,4.10459026,185.89,185.84,4.09459026]
[1761934931087,4.10459026,185.89,185.84,3.39459026]
[1761934931290,0.71,185.89,185.85,0.7]
[1761934931486,0.71,185.88,185.84,3.39459026]
[1761934931712,0.71,185.88,185.84,0.7]
[1761934931983,0.71,185.88,185.84,4.09459026]
[1761934932292,4.10459026,185.88,185.83,4.09459026]
[1761934932494,25.97127089,185.9,185.84,3.39459026]
[1761934932495,3.39459026,185.89,185.84,3.39459026]
[1761934932705,3.39459026,185.89,185.84,4.09459026]
[1761934932909,4.10459026,185.88,185.82,0.7]
[1761934933126,0.71,185.88,185.84,0.7]
[1761934933287,0.71,185.88,185.84,4.09459026]
[1761934933607,24.69659026,185.9,185.85,3.39459026]
[1761934933979,0.71,185.89,185.85,3.39459026]
[1761934934394,0.71,185.89,185.84,0.7]
[1761934934395,4.10459026,185.89,185.84,4.09459026]
[1761934935396,3.39459026,185.89,185.85,0.7]
[1761934935594,23.98659026,185.9,185.85,4.09459026]
[1761934935910,24.69659026,185.9,185.85,4.09459026]
[1761934936218,20.592,185.9,185.87,3.39459026]
[1761934936405,0.1,185.91,185.88,3.39459026]
[1761934936719,0.1,185.91,185.89,0.7]
[1761934937017,0.1,185.91,185.84,80.63333034]
[1761934937187,0.1,185.91,185.88,4.09459026]
[1761934938998,0.1,185.91,185.88,3.39459026]
[1761934939202,0.1,185.91,185.87,4.09459026]
[1761934939406,0.1,185.91,185.88,4.09459026]
[1761934939912,0.1,185.91,185.86,5.38032712]
[1761934939913,0.1,185.91,185.9,3.39459026]
[1761934940309,0.1,185.91,185.9,4.09459026]
[1761934941013,0.1,185.91,185.9,9.4738264]
[1761934942838,0.1,185.91,185.9,24.68659026]
[1761934943037,0.1,185.91,185.9,3.39459026]
[1761934943206,0.1,185.91,185.89,3.39459026]
[1761934943890,0.1,185.91,185.89,4.09459026]
[1761934944402,0.1,185.91,185.9,3.39459026]
[1761934944601,0.1,185.91,185.9,24.68659026]
[1761934944899,0.1,185.91,185.9,30.0658264]
[1761934945114,0.1,185.91,185.9,39.85465409]
[1761934945314,0.1,185.91,185.9,38.63001448]
[1761934946238,0.1,185.91,185.9,28.84118679]
[1761934946400,0.1,185.91,185.9,2.16995065]
[1761934946727,0.1,185.91,185.9,2.82995065]
[1761934947497,0.1,185.91,185.9,8.20918679]
[1761934948518,0.1,185.91,185.9,2.82995065]
[1761934948699,0.1,185.91,185.88,2.16995065]
[1761934948900,0.1,185.91,185.88,61.8]
[1761934949642,0.76,185.91,185.88,61.8]
[1761934949812,0.1,185.91,185.88,61.8]
[1761934950219,2.92995065,185.91,185.88,61.8]
[1761934950544,2.26995065,185.91,185.88,61.8]
[1761934950718,0.1,185.91,185.88,62.46]
[1761934950904,0.1,185.91,185.89,2.82995065]
[1761934951408,0.1,185.91,185.9,0.66]
[1761934951602,0.1,185.91,185.9,2.82995065]
[1761934952919,0.1,185.91,185.9,8.20918679]
[1761934953117,0.1,185.91,185.9,70.00918679]
[1761934953928,0.1,185.91,185.9,61.8]
[1761934954942,0.1,185.91,185.9,63.96995065]
[1761934955105,0.1,185.91,185.9,61.8]
[1761934955309,0.1,185.91,185.9,63.96995065]
[1761934956612,0.1,185.91,185.9,64.62995065]
[1761934956914,0.1,185.91,185.9,63.96995065]
[1761934957111,0.1,185.91,185.9,64.62995065]
[1761934957714,0.1,185.91,185.9,2.82995065]
[1761934958215,0.1,185.91,185.9,8.20918679]
[1761934963427,0.1,185.91,185.9,70.00918679]
[1761934963950,0.1,185.91,185.9,62.46]
[1761934964249,0.1,185.91,185.9,64.62995065]
[1761934965248,0.1,185.91,185.9,70.00918679]
[1761934980718,0.1,185.92,185.9,70.00918679]
[1761934980719,0.1,185.92,185.91,9.78882769]
[1761934980926,0.1,185.93,185.91,25.85707886]
[1761934981153,0.1,185.93,185.92,41.93058094]
[1761934981323,0.1,185.93,185.92,103.73058094]
[1761934982446,0.1,185.93,185.92,109.53572313]
[1761934983266,0.1,185.95,185.94,30.52298926]
[1761934983428,0.1,185.95,185.94,41.37274251]
[1761934983623,0.1,185.95,185.94,42.07274251]
[1761934983827,0.1,185.99,185.95,9.65275809]
[1761934984054,0.1,185.99,185.98,22.76195065]
[1761934984245,0.1,185.99,185.98,2.31211222]
[1761934984451,0.1,185.99,185.98,8.38903446]
[1761934984830,0.1,186.0,185.99,20.73416157]
[1761934985031,0.1,186.0,185.99,28.07965233]
[1761934985342,0.1,186.0,185.99,23.60411222]
[1761934985953,0.1,186.0,185.99,33.39293991]
[1761934986664,0.1,186.0,185.99,38.76957306]
[1761934989967,0.1,186.0,185.99,38.62741149]
[1761934990464,0.1,186.0,185.99,38.76957306]
[1761934995338,0.1,186.0,185.99,36.45746084]
[1761934995648,0.1,186.0,185.99,38.76957306]
[1761934995853,0.1,186.01,186.0,73.65877834]
[1761934996035,0.1,186.01,186.0,74.35877834]
[1761934996872,0.1,186.01,186.0,79.73512242]
[1761934999043,0.1,186.01,186.0,79.03512242]
[1761934999562,0.1,186.01,186.0,79.73512242]
[1761935000061,0.1,186.01,186.0,79.03512242]
[1761935000868,0.1,186.01,186.0,63.86995065]
[1761935000869,0.79,186.01,186.0,63.86995065]
[1761935001162,0.79,186.01,186.0,61.7]
[1761935001883,0.79,186.01,185.96,61.7]
[1761935002053,0.79,186.01,185.96,2.16995065]
[1761935002241,0.79,186.01,185.99,2.16995065]
[1761935003849,0.79,186.01,186.0,2.16995065]
[1761935004050,0.1,186.01,186.0,2.16995065]
[1761935004950,0.1,186.01,186.0,2.83995065]
[1761935005259,0.1,186.01,186.0,8.21629473]
[1761935005460,0.1,186.01,186.0,8.76374972]
[1761935007558,0.1,186.01,186.0,70.46374972]
[1761935012982,0.1,186.01,186.0,101.53457741]
[1761935013183,0.1,186.01,186.0,84.32998305]
[1761935013355,0.1,186.05,186.04,23.97940564]
[1761935013559,0.1,186.05,186.04,85.67940564]
[1761935014557,0.1,186.05,186.04,86.36940564]
[1761935014877,0.1,186.05,186.04,91.74459377]
[1761935015185,0.1,186.05,186.04,91.05459377]
[1761935015751,0.1,186.05,186.04,87.66718813]
[1761935015973,0.1,186.05,186.04,91.05459377]
[1761935019550,0.1,186.05,186.04,91.74459377]
[1761935020193,0.1,186.05,186.04,91.05459377]
[1761935020860,0.76,186.05,186.04,91.05459377]
[1761935021665,0.76,186.05,186.03,3.38740564]
[1761935021861,0.76,186.05,186.0,3.38740564]
[1761935022060,4.14740564,186.05,186.0,3.38740564]
[1761935022388,9.52230905,186.05,186.0,3.38740564]
[1761935022569,0.66,186.04,186.0,3.38740564]
[1761935022977,0.66,186.04,185.97,25.96914078]
[1761935023205,0.66,186.04,186.01,3.38740564]
[1761935023479,4.04740564,186.04,185.99,3.38740564]
[1761935023878,0.66,186.03,185.99,3.38740564]
[1761935025083,0.66,186.03,186.0,3.38740564]
[1761935025865,0.66,186.03,185.97,25.9691309]
[1761935026066,0.66,186.03,186.0,3.38740564]
[1761935028387,0.66,186.03,185.98,5.37688242]
[1761935028584,0.66,186.03,186.0,3.38740564]
[1761935028789,0.66,186.03,185.99,3.38740564]
[1761935028962,0.66,186.03,185.98,3.38740564]
[1761935028963,9.42294321,186.03,185.98,3.38740564]
[1761935029286,0.66,186.02,185.98,3.38740564]
[1761935029588,3.38740564,186.01,185.96,3.38740564]
[1761935029979,0.66,186.0,185.96,3.38740564]
[1761935031975,4.04740564,186.0,185.95,3.38740564]
[1761935032376,0.66,185.99,185.95,3.38740564]
[1761935033791,0.66,185.99,185.96,3.38740564]
[1761935035693,0.71,186.01,185.98,3.38740564]
[1761935035894,0.71,186.03,186.0,3.38740564]
[1761935036594,0.71,186.03,185.99,3.38740564]
[1761935037367,0.71,186.03,186.0,3.38740564]
[1761935037569,0.71,186.03,186.01,3.38740564]
[1761935037990,0.71,186.03,185.98,0.71]
[1761935037991,0.71,186.03,186.0,3.38740564]
[1761935038190,0.71,186.03,185.99,3.38740564]
[1761935039678,0.71,186.03,185.99,65.18740564]
[1761935041096,0.71,186.03,186.0,3.38740564]
[1761935042199,0.1,186.05,186.01,4.09740564]
[1761935042420,0.1,186.05,186.02,20.592]
[1761935042591,0.1,186.05,186.04,3.38740564]
[1761935042916,0.1,186.05,186.04,13.88623333]
[1761935043073,0.1,186.05,186.04,19.26142146]
[1761935043478,0.1,186.07,186.06,30.38082769]
[1761935043809,0.1,186.07,186.06,33.76823333]
[1761935043990,0.1,186.07,186.06,34.47823333]
[1761935045101,0.1,186.07,186.06,39.85284367]
[1761935046103,0.1,186.1,186.09,3.38740564]
[1761935046509,0.1,186.1,186.09,4.09740564]
[1761935047098,0.1,186.1,186.09,9.47114952]
[1761935047274,0.1,186.1,186.09,3.38740564]
[1761935047683,0.1,186.1,186.05,2.15418585]
[1761935047684,0.81,186.1,186.05,2.15418585]
[1761935047884,0.81,186.1,186.05,3.38740564]
[1761935048099,4.19740564,186.1,186.05,3.38740564]
[1761935048302,0.81,186.1,186.06,3.38740564]
[1761935048511,0.71,186.09,186.06,3.38740564]
[1761935048801,0.71,186.09,186.05,3.38740564]
[1761935049692,4.09740564,186.09,186.04,3.38740564]
[1761935050092,0.71,186.08,186.04,3.38740564]
[1761935050290,0.71,186.08,186.02,6.08575131]
[1761935050597,0.71,186.08,186.04,3.38740564]
[1761935052892,3.38740564,186.06,186.01,3.38740564]
[1761935053112,0.71,186.05,186.01,3.38740564]
[1761935053810,0.71,186.05,186.02,3.38740564]
[1761935054916,0.71,186.05,186.0,0.71]
[1761935055219,6.36837802,186.08,186.04,3.38740564]
[1761935055220,0.71,186.08,186.04,3.38740564]
[1761935056487,5.47567129,186.1,186.06,3.38740564]
[1761935056719,0.1,186.1,186.08,3.38740564]
[1761935057031,0.1,186.1,186.03,3.38740564]
[1761935057032,0.1,186.1,186.09,3.38740564]
[1761935057698,0.1,186.1,186.09,4.09740564]
[1761935058017,0.1,186.1,186.09,3.38740564]
[1761935059016,0.1,186.1,186.09,8.76114952]
[1761935060020,0.1,186.1,186.09,3.38740564]
[1761935060226,0.1,186.1,186.09,65.18740564]
[1761935060401,0.1,186.1,186.09,61.8]
[1761935060722,0.1,186.1,186.09,65.18740564]
[1761935061798,0.1,186.1,186.09,3.38740564]
[1761935065402,0.1,186.1,186.09,2.16639851]
[1761935065918,0.75,186.1,186.06,5.37455259]
[1761935066103,0.75,186.1,186.08,2.16639851]
[1761935066915,0.75,186.1,186.05,6.09482257]
[1761935067126,0.75,186.1,186.05,0.72]
[1761935067326,2.91639851,186.1,186.05,2.16639851]
[1761935067530,0.75,186.1,186.05,2.16639851]
[1761935067704,0.65,186.09,186.06,2.16639851]
[1761935068028,0.65,186.09,186.03,26.68745357]
[1761935068029,0.65,186.09,186.04,2.16639851]
[1761935068502,0.65,186.09,186.04,2.88639851]
[1761935068892,0.65,186.09,186.05,2.16639851]
[1761935069122,0.65,186.09,186.06,2.16639851]
[1761935069305,0.65,186.09,186.04,0.72]
[1761935069496,0.65,186.09,186.06,2.16639851]
[1761935069927,0.65,186.09,186.05,2.16639851]
[1761935070228,2.81639851,186.09,186.04,61.8]
[1761935070522,2.16639851,186.07,185.99,14.33685534]
[1761935070710,2.81639851,186.06,186.01,2.16639851]
[1761935071022,0.65,186.06,186.01,2.16639851]
[1761935071226,0.65,186.05,186.01,2.16639851]
[1761935071635,2.16639851,186.04,185.99,8.96024849]
[1761935071811,2.16639851,186.03,185.99,8.96024849]
[1761935072007,2.81639851,186.04,185.99,11.126647]
[1761935072215,3.10072165,186.05,186.0,2.16639851]
[1761935072609,0.65,186.04,186.01,2.16639851]
[1761935073405,0.65,186.07,186.03,2.16639851]
[1761935073620,0.65,186.07,186.04,2.16639851]
[1761935074235,0.65,186.09,186.06,2.16639851]
[1761935074528,0.65,186.08,186.06,2.16639851]
[1761935076012,0.65,186.08,186.05,2.16639851]
[1761935078009,0.65,186.08,186.04,2.16639851]
[1761935078510,0.65,186.08,186.05,2.16639851]
[1761935078723,0.65,186.08,186.04,2.16639851]
[1761935079213,2.81639851,186.08,186.03,2.16639851]
[1761935079651,0.65,186.07,186.03,2.16639851]
[1761935079817,2.81639851,186.07,186.02,2.16639851]
[1761935080016,0.65,186.07,186.02,2.16639851]
[1761935080339,0.65,186.06,185.99,76.85686355]
[1761935080537,0.65,186.06,186.02,2.16639851]
[1761935080942,0.65,186.06,186.01,2.16639851]
[1761935080943,0.93432314,186.06,186.01,2.16639851]
[1761935081127,2.16639851,186.04,185.99,8.96024849]
[1761935081435,3.10072165,186.03,185.99,8.96024849]
[1761935081635,2.16639851,186.02,185.99,8.96024849]
[1761935081839,0.65,186.02,185.99,8.96024849]
[1761935082036,0.65,186.01,185.99,8.96024849]
[1761935083044,2.45072165,186.03,185.99,11.126647]
[1761935083045,0.65,186.03,185.99,11.126647]
[1761935083244,0.65,186.02,185.99,11.126647]
[1761935083416,0.65,186.02,185.99,8.96024849]
[1761935083932,2.16639851,186.04,185.99,8.96024849]
[1761935084127,0.65,186.03,185.99,11.126647]
[1761935085028,0.65,186.03,185.99,8.96024849]
[1761935085231,2.81639851,186.03,185.99,8.96024849]
[1761935085751,9.78882769,185.97,185.87,4.45657288]
[1761935085926,2.45072165,185.93,185.86,3.08639851]
[1761935086127,2.16639851,185.91,185.86,0.2]
[1761935086324,2.16639851,185.88,185.86,0.2]
[1761935086711,4.01441449,185.87,185.86,0.2]
[1761935087734,6.180813,185.87,185.86,0.2]
[1761935089242,11.56091737,185.87,185.86,0.2]
[1761935090747,11.98740208,185.87,185.86,0.2]
[1761935091721,4.29873763,185.87,185.86,0.2]
[1761935091918,20.592,185.88,185.86,0.2]
[1761935092119,2.16639851,185.91,185.86,0.92]
[1761935092322,2.16639851,185.93,185.87,2.16639851]
[1761935092542,3.98747929,185.92,185.87,0.72]
[1761935092756,2.16639851,185.95,185.89,2.16639851]
[1761935093054,20.592,185.92,185.89,2.16639851]
[1761935093355,20.592,185.92,185.89,2.88639851]
[1761935093554,7.54420313,185.95,185.9,0.72]
[1761935093724,28.13620313,185.95,185.9,0.72]
[1761935094037,2.16639851,185.94,185.9,0.72]
[1761935095026,5.37810909,185.94,185.9,0.72]
[1761935097050,10.90684723,185.94,185.86,0.2]
[1761935097238,4.40936618,185.93,185.86,6.42873814]
[1761935097430,5.52873814,185.92,185.86,6.42873814]
[1761935097647,5.52873814,185.92,185.87,0.7]
[1761935098553,0.42648471,185.93,185.89,5.52873814]
[1761935098758,15.31445165,185.93,185.88,5.52873814]
[1761935098927,11.3337466,185.93,185.88,5.52873814]
[1761935099126,11.3337466,185.93,185.88,6.22873814]
[1761935099353,11.3337466,185.93,185.89,0.7]
[1761935099534,5.37810774,185.94,185.89,6.22873814]
[1761935100054,5.37810774,185.94,185.9,0.7]
[1761935100651,20.592,185.95,185.91,5.52873814]
[1761935100959,5.52873814,186.0,185.94,5.52873814]
[1761935101129,5.52873814,185.97,185.91,5.52873814]
[1761935101325,5.52873814,185.97,185.9,62.5]
[1761935101326,5.52873814,185.95,185.9,68.02873814]
[1761935101524,5.52873814,185.95,185.87,20.592]
[1761935101525,5.52873814,185.93,185.88,0.7]
[1761935101826,5.52873814,185.93,185.88,6.22873814]
[1761935102341,5.52873814,185.93,185.89,0.7]
[1761935102741,5.95522285,185.95,185.9,5.52873814]
[1761935103039,5.52873814,185.95,185.91,0.7]
[1761935103223,25.96975879,185.96,185.91,0.7]
[1761935103428,3.97897197,185.95,185.91,6.22873814]
[1761935103849,20.592,185.96,185.93,5.52873814]
[1761935104044,20.592,185.97,185.93,6.22873814]
[1761935104442,5.52873814,185.96,185.91,6.22873814]
[1761935104658,5.52873814,185.96,185.92,0.7]
[1761935104836,10.90634503,185.96,185.91,5.52873814]
[1761935105159,5.52873814,185.94,185.88,0.7]
[1761935105482,5.52873814,185.92,185.88,0.7]
[1761935105657,5.52873814,185.92,185.87,5.52873814]
[1761935105858,20.592,185.93,185.87,6.22873814]
[1761935106043,5.52873814,185.92,185.87,68.02873814]
[1761935106354,5.52873814,185.92,185.87,5.52873814]
[1761935106752,10.90771213,185.91,185.87,0.7]
[1761935107142,5.37897399,185.91,185.87,0.7]
[1761935107346,5.52873814,185.89,185.86,0.2]
[1761935108432,5.52873814,185.88,185.86,0.2]
[1761935108873,5.38010437,185.87,185.86,0.2]
[1761935109075,11.33532722,185.87,185.86,0.2]
[1761935109363,35.91088382,185.87,185.86,0.2]
[1761935110773,20.592,185.87,185.86,0.2]
[1761935110935,5.81306128,185.89,185.86,0.9]
[1761935111131,20.592,185.87,185.86,0.9]
[1761935111639,20.592,185.87,185.86,0.2]
[1761935112862,20.592,185.87,185.86,0.9]
[1761935113362,5.52873814,185.89,185.86,0.2]
[1761935113665,3.98616702,185.88,185.86,0.9]
[1761935114447,3.98616702,185.88,185.87,0.7]
[1761935114448,24.57816702,185.88,185.87,0.7]
[1761935115036,3.98616702,185.88,185.87,6.22873814]
[1761935115242,20.592,185.92,185.87,6.22873814]
[1761935115551,3.98793508,185.91,185.88,6.22873814]
[1761935116066,5.52873814,185.94,185.89,0.7]
[1761935116067,10.90694238,185.94,185.89,0.7]
[1761935116263,3.98748091,185.93,185.89,0.7]
[1761935116642,3.98748091,185.93,185.89,6.22873814]
[1761935116840,9.36586241,185.93,185.89,0.7]
[1761935117040,9.36586241,185.93,185.9,0.7]
[1761935117041,3.98748091,185.92,185.9,0.7]
[1761935117476,13.44131437,186.0,185.91,5.52873814]
[1761935117674,5.52873814,185.97,185.92,5.52873814]
[1761935117847,9.51768264,185.96,185.91,5.52873814]
[1761935118046,3.9889445,185.95,185.91,5.52873814]
[1761935118271,3.9889445,185.95,185.92,0.7]
[1761935118655,5.52873814,185.93,185.88,0.7]
[1761935118849,5.52873814,185.9,185.86,0.9]
[1761935119258,5.52873814,185.91,185.87,0.7]
[1761935119444,3.99297828,185.9,185.87,0.7]
[1761935120054,9.52171642,185.9,185.87,0.7]
[1761935120372,3.99571834,185.89,185.87,0.7]
[1761935121373,3.99571834,185.89,185.86,0.2]
[1761935121560,3.99571834,185.89,185.86,0.89]
[1761935122254,3.99571834,185.89,185.86,0.2]
[1761935122457,3.99571834,185.88,185.86,0.89]
[1761935122658,5.52873814,185.9,185.86,0.89]
[1761935122869,4.00106936,185.89,185.87,0.69]
[1761935123077,4.00106936,185.88,185.87,0.69]
[1761935123380,5.52873814,185.91,185.87,0.69]
[1761935123559,4.00401158,185.9,185.87,0.69]
[1761935123758,4.00401158,185.89,185.87,0.69]
[1761935123965,4.00401158,185.88,185.87,0.69]
[1761935124163,4.00401158,185.88,185.86,0.2]
[1761935124367,4.00401158,185.87,185.86,0.2]
[1761935124882,4.00401158,185.87,185.86,0.89]
[1761935125872,4.00401158,185.87,185.86,0.2]
[1761935126784,4.00401158,185.87,185.86,0.9]
[1761935130083,4.00401158,185.87,185.86,0.2]
[1761935130287,7.39898153,185.87,185.86,0.2]
[1761935130790,4.00401158,185.87,185.86,0.2]
[1761935131995,7.39898153,185.87,185.86,0.2]
[1761935133386,4.00401158,185.87,185.86,0.9]
[1761935133773,4.00401158,185.87,185.86,4.29496995]
[1761935134287,4.00401158,185.87,185.86,0.9]
[1761935134484,4.00401158,185.87,185.86,4.29496995]
[1761935135082,4.00401158,185.87,185.86,0.9]
[1761935135274,4.00401158,185.87,185.86,0.2]
[1761935135479,12.7790859,185.87,185.86,0.2]
[1761935137568,7.39898153,185.87,185.86,0.2]
[1761935138392,3.53501591,185.87,185.86,0.2]
[1761935138602,3.53501591,185.87,185.86,4.29496995]
[1761935139505,3.53501591,185.87,185.86,9.30300776]
[1761935140372,3.53501591,185.87,185.86,0.9]
[1761935140601,3.53501591,185.87,185.86,9.30300776]
[1761935141383,3.53501591,185.87,185.86,0.2]
[1761935141589,3.53501591,185.87,185.86,0.9]
[1761935142506,25.97131346,185.9,185.86,0.9]
[1761935142704,3.62555007,185.89,185.86,8.60300776]
[1761935142889,20.592,185.9,185.87,0.7]
[1761935143090,25.97129724,185.9,185.87,0.7]
[1761935143905,20.592,185.9,185.87,0.7]
[1761935147787,25.97126751,185.9,185.87,0.7]
[1761935148012,34.37427527,185.9,185.86,0.2]
[1761935148309,34.37427527,185.9,185.86,0.9]
[1761935148702,8.40300776,185.88,185.86,0.9]
[1761935148909,8.40300776,185.88,185.86,0.2]
[1761935149096,8.40300776,185.89,185.87,0.7]
[1761935149779,28.99500776,185.9,185.87,0.7]
[1761935150399,4.0321894,185.89,185.87,0.7]
[1761935150685,4.0321894,185.88,185.87,0.7]
[1761935155816,12.43519716,185.88,185.87,0.7]
[1761935156016,12.43519716,185.88,185.86,0.2]
[1761935156319,4.0321894,185.87,185.86,0.91]
[1761935161923,4.0321894,185.87,185.86,4.30408628]
[1761935164909,4.0321894,185.87,185.86,0.91]
[1761935165543,4.0321894,185.87,185.86,0.2]
[1761935165709,4.0321894,185.87,185.86,0.91]
[1761935166906,4.0321894,185.87,185.86,0.2]
[1761935167835,4.0321894,185.87,185.86,0.91]
[1761935168935,4.0321894,185.87,185.86,0.2]
[1761935169234,4.0321894,185.87,185.86,0.91]
[1761935170036,4.0321894,185.87,185.86,0.2]
[1761935170230,12.80638005,185.87,185.86,0.2]
[1761935170405,7.42627568,185.87,185.86,0.2]
[1761935171422,4.0321894,185.87,185.86,0.2]
[1761935175026,4.0321894,185.87,185.86,0.91]
[1761935176232,4.0321894,185.87,185.86,4.30408628]
[1761935178880,4.0321894,185.87,185.86,9.68448012]
[1761935179469,4.0321894,185.87,185.86,4.30408628]
[1761935179766,4.03645151,185.87,185.86,4.30408628]
[1761935183440,4.03645151,185.87,185.86,66.10408628]
[1761935184276,4.03645151,185.87,185.86,71.48448012]
[1761935186051,4.03645151,185.87,185.86,66.10408628]
[1761935186276,4.03645151,185.87,185.86,71.48448012]
[1761935186865,4.03645151,185.87,185.86,66.10408628]
[1761935187378,4.03645151,185.87,185.86,71.48448012]
[1761935187575,5.37713246,185.98,185.86,84.93546473]
[1761935187874,4.03301557,185.97,185.94,3.39408628]
[1761935188098,12.40049296,185.99,185.94,4.08408628]
[1761935188099,24.62501557,185.96,185.94,4.08408628]
[1761935188259,4.03301557,185.95,185.93,3.39408628]
[1761935188461,4.03301557,185.94,185.93,3.39408628]
[1761935189154,4.03301557,185.94,185.93,4.08408628]
[1761935189355,4.03301557,185.94,185.93,8.2383948]
[1761935190170,3.31301557,185.94,185.93,16.9185012]
[1761935190358,2.8600266,186.03,185.93,16.9185012]
[1761935190359,20.592,186.01,185.93,30.3644217]
[1761935190558,2.8600266,186.05,186.0,2.1700266]
[1761935190858,20.592,186.03,186.0,2.1700266]
[1761935191063,2.8600266,186.05,185.99,2.1700266]
[1761935191064,20.592,186.02,185.99,2.1700266]
[1761935191258,20.592,186.02,185.98,2.8600266]
[1761935191665,28.82722799,186.04,185.98,2.8600266]
[1761935191971,0.69,186.03,185.98,2.8600266]
[1761935192167,20.592,186.02,185.99,2.1700266]
[1761935192748,2.8600266,186.01,185.95,2.1700266]
[1761935193099,2.1700266,185.99,185.93,8.2383336]
[1761935193280,2.1700266,185.99,185.94,2.1700266]
[1761935193481,2.8600266,185.99,185.94,0.69]
[1761935193666,2.8600266,185.98,185.92,2.1700266]
[1761935193987,2.1700266,185.99,185.94,2.8600266]
[1761935194171,2.8600266,185.99,185.94,2.8600266]
[1761935195400,2.8600266,185.98,185.92,0.69]
[1761935195556,2.1700266,185.96,185.9,0.69]
[1761935195755,2.1700266,185.96,185.91,2.8600266]
[1761935196166,2.8600266,185.96,185.91,2.8600266]
[1761935196577,2.1700266,185.96,185.91,2.1700266]
[1761935196775,2.1700266,185.97,185.92,0.69]
[1761935196975,2.1700266,185.97,185.91,2.1700266]
[1761935197184,2.1700266,185.94,185.88,2.8600266]
[1761935197352,2.1700266,185.94,185.86,0.2]
[1761935197353,2.1700266,185.92,185.86,0.89]
[1761935197557,2.1700266,185.92,185.86,3.0600266]
[1761935197789,2.8600266,185.92,185.87,2.8600266]
[1761935198104,0.28432314,185.94,185.88,2.1700266]
[1761935198105,2.59651131,185.94,185.88,2.1700266]
[1761935198292,0.69,185.93,185.88,2.1700266]
[1761935198580,2.1700266,185.91,185.86,0.2]
[1761935198759,2.1700266,185.88,185.86,0.2]
[1761935198962,0.69,185.88,185.86,0.2]
[1761935199583,20.592,185.89,185.86,0.2]
[1761935199786,21.282,185.89,185.86,0.2]
[1761935199984,20.592,185.89,185.86,0.89]
[1761935200996,0.42648471,185.93,185.88,2.1700266]
[1761935201309,20.592,185.91,185.89,2.1700266]
[1761935201479,20.592,185.93,185.9,2.1700266]
[1761935201681,0.69,185.95,185.9,2.1700266]
[1761935201682,2.8600266,185.95,185.9,2.1700266]
[1761935201884,20.592,185.92,185.9,2.1700266]
[1761935202283,4.01769878,185.91,185.9,2.1700266]
[1761935202680,4.01769878,185.92,185.9,0.69]
[1761935202882,4.01769878,185.91,185.9,2.1700266]
[1761935203306,24.60969878,185.95,185.9,2.1700266]
[1761935203481,4.01769878,185.94,185.9,2.8600266]
[1761935203680,4.01769878,185.93,185.9,2.8600266]
[1761935203981,4.01769878,185.92,185.9,2.8600266]
[1761935204189,4.01769878,185.91,185.9,2.8600266]
[1761935204385,20.592,185.94,185.91,0.69]
[1761935204603,4.01707508,185.93,185.92,2.1700266]
[1761935204899,4.01707508,185.95,185.92,2.1700266]
[1761935205118,4.01707508,185.94,185.92,0.69]
[1761935205410,4.01707508,185.93,185.9,5.37918769]
[1761935205620,6.06918769,185.99,185.9,67.17918769]
[1761935205813,4.01690666,185.98,185.9,67.17918769]
[1761935206112,4.01690666,185.97,185.91,0.69]
[1761935206290,4.01690666,185.96,185.92,5.37865748]
[1761935206613,20.592,185.99,185.95,2.1700266]
[1761935206803,4.01658617,185.98,185.97,2.1700266]
[1761935207210,4.01658617,185.98,185.97,2.8600266]
[1761935207588,4.01658617,186.02,185.97,2.8600266]
[1761935207789,4.01658617,186.01,185.93,4.01658617]
[1761935208007,4.01658617,186.0,185.95,2.1700266]
[1761935208205,4.01658617,185.99,185.95,2.1700266]